[Event "Early-Titled-Tuesday-Blitz-December-26-2023"]
[Site "Chess.com"]
[Date "2023.12.26"]
[Round "4"]
[White "quvnoq_muxlis"]
[Black "MIss_MIaMI"]
[Result "1-0"]
[WhiteElo "2727"]
[BlackElo "2429"]
[TimeControl "180+1"]
[EndTime "8:39:17 PST"]
[Termination "quvnoq_muxlis won by checkmate"]

1. e4 {[%clk 0:03:00.9]} 1... c5 {[%clk 0:03:00.4]} 2. Nf3 {[%clk 0:03:00.3]}
2... e6 {[%clk 0:03:01.1]} 3. c3 {[%clk 0:03:00.5]} 3... b6 {[%clk 0:03:01.1]}
4. d4 {[%clk 0:03:00.5]} 4... Bb7 {[%clk 0:02:59.7]} 5. Bd3 {[%clk 0:03:00.5]}
5... Nf6 {[%clk 0:03:00.2]} 6. Nbd2 {[%clk 0:03:00]} 6... d6 {[%clk 0:03:00.9]}
7. O-O {[%clk 0:03:00.2]} 7... Be7 {[%clk 0:03:01.6]} 8. Re1 {[%clk 0:02:58.9]}
8... Nc6 {[%clk 0:02:57.5]} 9. Nf1 {[%clk 0:02:58.1]} 9... h6 {[%clk 0:02:41.9]}
10. Ng3 {[%clk 0:02:56.9]} 10... cxd4 {[%clk 0:02:39.9]} 11. cxd4 {[%clk
0:02:56.4]} 11... Rc8 {[%clk 0:02:34.7]} 12. a3 {[%clk 0:02:56.5]} 12... Na5
{[%clk 0:02:28]} 13. b4 {[%clk 0:02:15.9]} 13... Nc6 {[%clk 0:02:23.6]} 14. Bb2
{[%clk 0:02:10.4]} 14... O-O {[%clk 0:02:18.2]} 15. Rc1 {[%clk 0:02:07.9]} 15...
a6 {[%clk 0:02:13.8]} 16. d5 {[%clk 0:01:53.9]} 16... exd5 {[%clk 0:01:41]} 17.
exd5 {[%clk 0:01:54.8]} 17... Nb8 {[%clk 0:01:41.6]} 18. Rxc8 {[%clk 0:01:50.4]}
18... Bxc8 {[%clk 0:01:37.2]} 19. Bb1 {[%clk 0:01:24.6]} 19... Bg4 {[%clk
0:01:06.8]} 20. Qd3 {[%clk 0:01:24.2]} 20... g6 {[%clk 0:01:06.7]} 21. Nd4
{[%clk 0:00:43.3]} 21... Nxd5 {[%clk 0:00:56]} 22. Qe4 {[%clk 0:00:15.5]} 22...
Nf6 {[%clk 0:00:31.6]} 23. Qxe7 {[%clk 0:00:15.4]} 23... Qxe7 {[%clk 0:00:32.5]}
24. Rxe7 {[%clk 0:00:16.3]} 24... Nd5 {[%clk 0:00:33.2]} 25. Re1 {[%clk
0:00:15.9]} 25... Rc8 {[%clk 0:00:32.8]} 26. f3 {[%clk 0:00:15.2]} 26... Bd7
{[%clk 0:00:32.6]} 27. Kf2 {[%clk 0:00:11.8]} 27... a5 {[%clk 0:00:30.8]} 28.
bxa5 {[%clk 0:00:11.1]} 28... bxa5 {[%clk 0:00:31.7]} 29. Ne4 {[%clk 0:00:12]}
29... Na6 {[%clk 0:00:24.3]} 30. Ba2 {[%clk 0:00:11.1]} 30... Nb6 {[%clk
0:00:20.1]} 31. Nf6+ {[%clk 0:00:11.1]} 31... Kf8 {[%clk 0:00:19.4]} 32. Rc1
{[%clk 0:00:09]} 32... Rxc1 {[%clk 0:00:15.4]} 33. Bxc1 {[%clk 0:00:09.9]} 33...
Ba4 {[%clk 0:00:14.6]} 34. Bxh6+ {[%clk 0:00:09.2]} 34... Ke7 {[%clk 0:00:14.4]}
35. Bg5 {[%clk 0:00:09.9]} 35... Kf8 {[%clk 0:00:13.1]} 36. h4 {[%clk
0:00:07.6]} 36... Nc5 {[%clk 0:00:13.3]} 37. Ke3 {[%clk 0:00:06.6]} 37... Nc8
{[%clk 0:00:08]} 38. g4 {[%clk 0:00:02.5]} 38... d5 {[%clk 0:00:07.7]} 39. h5
{[%clk 0:00:03.1]} 39... Nd6 {[%clk 0:00:07.6]} 40. h6 {[%clk 0:00:02.9]} 40...
Nc4+ {[%clk 0:00:06.8]} 41. Bxc4 {[%clk 0:00:03.3]} 41... dxc4 {[%clk
0:00:07.7]} 42. Nd5 {[%clk 0:00:03.7]} 42... Ne6 {[%clk 0:00:07.1]} 43. Nxe6+
{[%clk 0:00:03.5]} 43... fxe6 {[%clk 0:00:08]} 44. Nc3 {[%clk 0:00:04.4]} 44...
Bb3 {[%clk 0:00:06.5]} 45. Bf6 {[%clk 0:00:04.8]} 45... Kg8 {[%clk 0:00:06.8]}
46. g5 {[%clk 0:00:05.2]} 46... Kh7 {[%clk 0:00:07.7]} 47. f4 {[%clk 0:00:06.1]}
47... e5 {[%clk 0:00:07.8]} 48. Bxe5 {[%clk 0:00:07]} 48... a4 {[%clk
0:00:07.4]} 49. Kd4 {[%clk 0:00:07.6]} 49... Bc2 {[%clk 0:00:08]} 50. Kc5 {[%clk
0:00:08.5]} 50... Bf5 {[%clk 0:00:08.7]} 51. Kb4 {[%clk 0:00:09.4]} 51... Bd3
{[%clk 0:00:09.2]} 52. Nxa4 {[%clk 0:00:09.9]} 52... Bf5 {[%clk 0:00:10.1]} 53.
Nc3 {[%clk 0:00:10.7]} 53... Kg8 {[%clk 0:00:11]} 54. a4 {[%clk 0:00:11.6]}
54... Kh7 {[%clk 0:00:11.6]} 55. a5 {[%clk 0:00:12.5]} 55... Kg8 {[%clk
0:00:12.5]} 56. Kc5 {[%clk 0:00:13.4]} 56... Kh7 {[%clk 0:00:13.4]} 57. Kb6
{[%clk 0:00:14.3]} 57... Be4 {[%clk 0:00:14]} 58. a6 {[%clk 0:00:15.2]} 58...
Bd5 {[%clk 0:00:14.7]} 59. a7 {[%clk 0:00:16.1]} 59... Bf3 {[%clk 0:00:15.5]}
60. Kc5 {[%clk 0:00:16]} 60... Bg2 {[%clk 0:00:15.8]} 61. Nd5 {[%clk 0:00:16.2]}
61... Bxd5 {[%clk 0:00:16.4]} 62. Kxd5 {[%clk 0:00:17.1]} 62... Kg8 {[%clk
0:00:16.6]} 63. a8=Q+ {[%clk 0:00:17.7]} 63... Kh7 {[%clk 0:00:17.5]} 64. Qh8#
{[%clk 0:00:17.8]} 1-0

[Event "Early-Titled-Tuesday-Blitz-December-26-2023"]
[Site "Chess.com"]
[Date "2023.12.26"]
[Round "4"]
[White "elchacal664"]
[Black "LeoLV10"]
[Result "1-0"]
[WhiteElo "2296"]
[BlackElo "2468"]
[TimeControl "180+1"]
[EndTime "8:39:17 PST"]
[Termination "elchacal664 won by resignation"]

1. e4 {[%clk 0:03:00.9]} 1... c6 {[%clk 0:02:58.5]} 2. d4 {[%clk 0:02:55]} 2...
d5 {[%clk 0:02:59.4]} 3. f3 {[%clk 0:02:55.2]} 3... e6 {[%clk 0:02:57]} 4. a3
{[%clk 0:02:49.1]} 4... Nd7 {[%clk 0:02:53.8]} 5. Nc3 {[%clk 0:02:48.8]} 5...
Bd6 {[%clk 0:02:49.9]} 6. e5 {[%clk 0:02:47.4]} 6... Bc7 {[%clk 0:02:46]} 7. f4
{[%clk 0:02:48]} 7... Ne7 {[%clk 0:02:46.2]} 8. Nf3 {[%clk 0:02:48.1]} 8... h5
{[%clk 0:02:38.5]} 9. Bd3 {[%clk 0:02:46.7]} 9... c5 {[%clk 0:02:37.8]} 10. Be3
{[%clk 0:02:39.5]} 10... c4 {[%clk 0:02:37.1]} 11. Be2 {[%clk 0:02:38.8]} 11...
Nf5 {[%clk 0:02:38]} 12. Bf2 {[%clk 0:02:38.5]} 12... Rb8 {[%clk 0:02:32.4]} 13.
Ng5 {[%clk 0:02:03.3]} 13... g6 {[%clk 0:02:28]} 14. h3 {[%clk 0:01:53.4]} 14...
h4 {[%clk 0:02:26.8]} 15. Bg4 {[%clk 0:01:52.2]} 15... Ng7 {[%clk 0:02:08.5]}
16. Nb5 {[%clk 0:01:37.5]} 16... a6 {[%clk 0:01:55.8]} 17. Nxc7+ {[%clk
0:01:36.6]} 17... Qxc7 {[%clk 0:01:56.7]} 18. Qd2 {[%clk 0:01:36.2]} 18... b5
{[%clk 0:01:42.3]} 19. O-O {[%clk 0:01:34]} 19... Bb7 {[%clk 0:01:35.5]} 20. Qe1
{[%clk 0:01:32.1]} 20... Nb6 {[%clk 0:01:21.7]} 21. Bxh4 {[%clk 0:01:21.9]}
21... c3 {[%clk 0:01:21.5]} 22. b3 {[%clk 0:01:21.5]} 22... Nc8 {[%clk
0:01:20.1]} 23. Bf2 {[%clk 0:01:21.3]} 23... Ne7 {[%clk 0:01:20.1]} 24. a4
{[%clk 0:01:18.6]} 24... b4 {[%clk 0:01:18.4]} 25. Bf3 {[%clk 0:01:11.2]} 25...
a5 {[%clk 0:01:18.1]} 26. g4 {[%clk 0:01:09.9]} 26... Kf8 {[%clk 0:00:49.3]} 27.
Be2 {[%clk 0:00:59.2]} 27... Bc8 {[%clk 0:00:41.6]} 28. Rd1 {[%clk 0:00:57.8]}
28... Bd7 {[%clk 0:00:41.7]} 29. Bd3 {[%clk 0:00:56.3]} 29... Ng8 {[%clk
0:00:32.7]} 30. Be3 {[%clk 0:00:49.4]} 30... Ke7 {[%clk 0:00:28.2]} 31. Rf2
{[%clk 0:00:40.2]} 31... Rf8 {[%clk 0:00:28.1]} 32. Qf1 {[%clk 0:00:33.5]} 32...
Nh6 {[%clk 0:00:26]} 33. Rg2 {[%clk 0:00:30.7]} 33... Kd8 {[%clk 0:00:23.3]} 34.
Qf3 {[%clk 0:00:29.4]} 34... Be8 {[%clk 0:00:22.6]} 35. Rf1 {[%clk 0:00:29.7]}
35... Ng8 {[%clk 0:00:20.5]} 36. Kf2 {[%clk 0:00:30.1]} 36... Ne7 {[%clk
0:00:20.6]} 37. Ke1 {[%clk 0:00:29.4]} 37... Bc6 {[%clk 0:00:18.4]} 38. Kd1
{[%clk 0:00:28.9]} 38... f5 {[%clk 0:00:16.6]} 39. Rfg1 {[%clk 0:00:15.5]} 39...
fxg4 {[%clk 0:00:14.7]} 40. hxg4 {[%clk 0:00:16.2]} 40... Kc8 {[%clk 0:00:12.8]}
41. Rg3 {[%clk 0:00:13.5]} 41... Bd7 {[%clk 0:00:12.7]} 42. Rh3 {[%clk
0:00:13.6]} 42... Qd8 {[%clk 0:00:11.9]} 43. Rgh1 {[%clk 0:00:13.4]} 43... Kc7
{[%clk 0:00:08.1]} 44. Qg3 {[%clk 0:00:13.4]} 44... Kb6 {[%clk 0:00:08.1]} 45.
Rh7 {[%clk 0:00:13]} 45... Rxh7 {[%clk 0:00:07.7]} 46. Rxh7 {[%clk 0:00:13.7]}
46... Rg8 {[%clk 0:00:07]} 47. Qh4 {[%clk 0:00:13.2]} 47... Qf8 {[%clk
0:00:07.3]} 48. Qh6 {[%clk 0:00:13.4]} 48... Nc8 {[%clk 0:00:02.3]} 49. Bxg6
{[%clk 0:00:11.5]} 49... Kc6 {[%clk 0:00:02.9]} 50. Bd3 {[%clk 0:00:11.2]} 50...
Nb6 {[%clk 0:00:01.8]} 51. Bb5+ {[%clk 0:00:10.2]} 51... Kc7 {[%clk 0:00:02.7]}
52. Bd3 {[%clk 0:00:10.5]} 52... Bc6 {[%clk 0:00:02.8]} 53. Qf6 {[%clk
0:00:10.8]} 53... Bd7 {[%clk 0:00:03.3]} 54. Qxf8 {[%clk 0:00:10.6]} 54... Rxf8
{[%clk 0:00:03.9]} 55. Rxg7 {[%clk 0:00:11]} 1-0

[Event "Early-Titled-Tuesday-Blitz-December-26-2023"]
[Site "Chess.com"]
[Date "2023.12.26"]
[Round "4"]
[White "defenceboy"]
[Black "rquery98"]
[Result "0-1"]
[WhiteElo "2838"]
[BlackElo "2753"]
[TimeControl "180+1"]
[EndTime "8:39:22 PST"]
[Termination "rquery98 won by resignation"]

1. e4 {[%clk 0:03:00.9]} 1... e5 {[%clk 0:02:59.9]} 2. Nf3 {[%clk 0:03:00.4]}
2... Nc6 {[%clk 0:03:00.5]} 3. Bc4 {[%clk 0:03:00.2]} 3... Bc5 {[%clk
0:03:00.3]} 4. c3 {[%clk 0:02:57.3]} 4... Nf6 {[%clk 0:03:00.7]} 5. d3 {[%clk
0:02:57.3]} 5... O-O {[%clk 0:03:00.6]} 6. O-O {[%clk 0:02:55.7]} 6... d6 {[%clk
0:02:59.7]} 7. Re1 {[%clk 0:02:53.4]} 7... Bb6 {[%clk 0:02:57.1]} 8. Bb3 {[%clk
0:02:49.8]} 8... Ng4 {[%clk 0:02:48.4]} 9. Re2 {[%clk 0:02:49.6]} 9... Kh8
{[%clk 0:02:48.4]} 10. h3 {[%clk 0:02:47.9]} 10... f5 {[%clk 0:02:48.9]} 11.
exf5 {[%clk 0:02:47.4]} 11... Nxf2 {[%clk 0:02:33.7]} 12. Rxf2 {[%clk
0:02:45.6]} 12... Bxf2+ {[%clk 0:02:34.6]} 13. Kxf2 {[%clk 0:02:46.5]} 13...
Bxf5 {[%clk 0:02:33.5]} 14. Kg1 {[%clk 0:02:34.8]} 14... d5 {[%clk 0:02:22.9]}
15. Bg5 {[%clk 0:02:30.7]} 15... Qd7 {[%clk 0:02:16.1]} 16. Qe2 {[%clk
0:02:19.7]} 16... e4 {[%clk 0:02:02.1]} 17. dxe4 {[%clk 0:02:17.6]} 17... dxe4
{[%clk 0:02:03]} 18. Nh4 {[%clk 0:02:12]} 18... Be6 {[%clk 0:01:37.4]} 19. Nd2
{[%clk 0:02:04.5]} 19... Bxb3 {[%clk 0:01:36.6]} 20. axb3 {[%clk 0:02:05.4]}
20... Rae8 {[%clk 0:01:29.7]} 21. Rf1 {[%clk 0:01:46.6]} 21... Rxf1+ {[%clk
0:01:19]} 22. Nxf1 {[%clk 0:01:46.6]} 22... Qd5 {[%clk 0:01:18.9]} 23. Qh5
{[%clk 0:01:39.6]} 23... Qe6 {[%clk 0:00:59.7]} 24. Ne3 {[%clk 0:01:33.1]} 24...
Kg8 {[%clk 0:00:56.2]} 25. b4 {[%clk 0:01:30.7]} 25... Qf7 {[%clk 0:00:50.7]}
26. Qxf7+ {[%clk 0:01:26.5]} 26... Kxf7 {[%clk 0:00:50.7]} 27. Nhf5 {[%clk
0:01:26.4]} 27... Ne5 {[%clk 0:00:38.5]} 28. Bf4 {[%clk 0:01:12.8]} 28... g6
{[%clk 0:00:29.3]} 29. Nh6+ {[%clk 0:00:50.8]} 29... Ke6 {[%clk 0:00:28.5]} 30.
Nhg4 {[%clk 0:00:51.1]} 30... Nd3 {[%clk 0:00:20.5]} 31. Bxc7 {[%clk 0:00:47.9]}
31... Nxb2 {[%clk 0:00:20.1]} 32. Be5 {[%clk 0:00:33.5]} 32... Nd3 {[%clk
0:00:17.6]} 33. Bd4 {[%clk 0:00:31.9]} 33... b6 {[%clk 0:00:17.8]} 34. Nf6
{[%clk 0:00:31.6]} 34... Ra8 {[%clk 0:00:16.9]} 35. Nxe4 {[%clk 0:00:29]} 35...
a5 {[%clk 0:00:17.6]} 36. bxa5 {[%clk 0:00:27.9]} 36... bxa5 {[%clk 0:00:17.3]}
37. Nc5+ {[%clk 0:00:18.1]} 37... Nxc5 {[%clk 0:00:16.7]} 38. Bxc5 {[%clk
0:00:19]} 38... a4 {[%clk 0:00:16.8]} 39. Nc2 {[%clk 0:00:18]} 39... Kd5 {[%clk
0:00:16.6]} 40. Bb4 {[%clk 0:00:18.3]} 40... Kc4 {[%clk 0:00:17.2]} 41. Kf2
{[%clk 0:00:18.6]} 41... Kb3 {[%clk 0:00:17.3]} 42. Na3 {[%clk 0:00:16.8]} 42...
Rd8 {[%clk 0:00:16.6]} 43. Ke3 {[%clk 0:00:16.4]} 43... Rb8 {[%clk 0:00:14.9]}
44. Nb1 {[%clk 0:00:16.2]} 44... Kb2 {[%clk 0:00:14.1]} 45. Nd2 {[%clk
0:00:16.6]} 45... Rc8 {[%clk 0:00:12.8]} 46. Kd3 {[%clk 0:00:09]} 46... a3
{[%clk 0:00:13.1]} 47. c4 {[%clk 0:00:07.3]} 47... Rd8+ {[%clk 0:00:09.6]} 48.
Ke2 {[%clk 0:00:03.8]} 48... a2 {[%clk 0:00:10]} 49. Ne4 {[%clk 0:00:03.2]}
49... Re8 {[%clk 0:00:08.2]} 50. Kd3 {[%clk 0:00:02.9]} 50... Rxe4 {[%clk
0:00:07.4]} 51. Bc3+ {[%clk 0:00:03.1]} 51... Kb3 {[%clk 0:00:08]} 52. Kxe4
{[%clk 0:00:02.7]} 52... Kxc3 {[%clk 0:00:07.9]} 53. c5 {[%clk 0:00:03.6]} 53...
a1=Q {[%clk 0:00:08.4]} 54. c6 {[%clk 0:00:04.5]} 54... Qa6 {[%clk 0:00:08.9]}
0-1

[Event "Early-Titled-Tuesday-Blitz-December-26-2023"]
[Site "Chess.com"]
[Date "2023.12.26"]
[Round "4"]
[White "AlexanderL"]
[Black "IlanSchnaider"]
[Result "1-0"]
[WhiteElo "2863"]
[BlackElo "2691"]
[TimeControl "180+1"]
[EndTime "8:39:28 PST"]
[Termination "AlexanderL won on time"]

1. Nf3 {[%clk 0:03:00.9]} 1... Nf6 {[%clk 0:03:00]} 2. c4 {[%clk 0:03:01.1]}
2... g6 {[%clk 0:03:00.3]} 3. Nc3 {[%clk 0:03:01]} 3... Bg7 {[%clk 0:03:00.8]}
4. e4 {[%clk 0:03:01.3]} 4... e5 {[%clk 0:03:01.1]} 5. Nxe5 {[%clk 0:03:00.2]}
5... O-O {[%clk 0:03:01.5]} 6. Be2 {[%clk 0:02:58.9]} 6... Re8 {[%clk 0:03:02]}
7. Nd3 {[%clk 0:02:59.2]} 7... Nxe4 {[%clk 0:03:01.6]} 8. O-O {[%clk 0:02:59.4]}
8... Nc6 {[%clk 0:02:55.1]} 9. Nf4 {[%clk 0:02:57.1]} 9... Nd4 {[%clk 0:02:46]}
10. Bd3 {[%clk 0:02:49.3]} 10... Nc5 {[%clk 0:02:46]} 11. Bb1 {[%clk 0:02:49.4]}
11... Nce6 {[%clk 0:02:44.9]} 12. d3 {[%clk 0:02:48.1]} 12... b6 {[%clk
0:02:42]} 13. Be3 {[%clk 0:02:43.1]} 13... Nxf4 {[%clk 0:02:37]} 14. Bxf4 {[%clk
0:02:42.9]} 14... Bb7 {[%clk 0:02:37.5]} 15. f3 {[%clk 0:02:42.8]} 15... d5
{[%clk 0:02:27.1]} 16. cxd5 {[%clk 0:02:33.6]} 16... Bxd5 {[%clk 0:02:27.5]} 17.
Bc2 {[%clk 0:02:27.2]} 17... Bb7 {[%clk 0:02:13.1]} 18. Kh1 {[%clk 0:02:25.5]}
18... c5 {[%clk 0:02:11.3]} 19. Ba4 {[%clk 0:02:22.1]} 19... Re6 {[%clk
0:02:09.8]} 20. Ne4 {[%clk 0:02:18.6]} 20... h6 {[%clk 0:01:25.8]} 21. Bb3
{[%clk 0:02:15.3]} 21... Nxb3 {[%clk 0:01:22.6]} 22. Qxb3 {[%clk 0:02:16.2]}
22... Bd5 {[%clk 0:01:22.3]} 23. Qc2 {[%clk 0:02:16.4]} 23... Kh7 {[%clk
0:01:14.8]} 24. Rfe1 {[%clk 0:02:12.1]} 24... Qd7 {[%clk 0:01:12.2]} 25. Re2
{[%clk 0:01:57.1]} 25... Rae8 {[%clk 0:01:10.6]} 26. Rae1 {[%clk 0:01:57.1]}
26... Qe7 {[%clk 0:01:01.2]} 27. b3 {[%clk 0:01:54.9]} 27... Qd7 {[%clk
0:00:49.5]} 28. Bc1 {[%clk 0:01:40.7]} 28... Bc6 {[%clk 0:00:44.7]} 29. Bb2
{[%clk 0:01:37]} 29... Bd4 {[%clk 0:00:33.5]} 30. Bxd4 {[%clk 0:01:33.4]} 30...
Qxd4 {[%clk 0:00:33.7]} 31. h3 {[%clk 0:01:28]} 31... Bb5 {[%clk 0:00:30.6]} 32.
Nf2 {[%clk 0:01:24.2]} 32... Re3 {[%clk 0:00:20.9]} 33. Rxe3 {[%clk 0:01:20.8]}
33... Rxe3 {[%clk 0:00:21.8]} 34. Rxe3 {[%clk 0:01:21]} 34... Qxe3 {[%clk
0:00:22.5]} 35. a4 {[%clk 0:01:04.2]} 35... Bc6 {[%clk 0:00:21.1]} 36. Ng4
{[%clk 0:00:57.7]} 36... Qe1+ {[%clk 0:00:20.2]} 37. Kh2 {[%clk 0:00:55.8]}
37... f5 {[%clk 0:00:17.3]} 38. Nf2 {[%clk 0:00:40.4]} 38... Qe5+ {[%clk
0:00:15.3]} 39. Kg1 {[%clk 0:00:39.3]} 39... Qe1+ {[%clk 0:00:15.5]} 40. Kh2
{[%clk 0:00:25]} 40... Bd5 {[%clk 0:00:16.4]} 41. d4 {[%clk 0:00:20.5]} 41...
Qe3 {[%clk 0:00:08.5]} 42. dxc5 {[%clk 0:00:18.8]} 42... bxc5 {[%clk 0:00:09.4]}
43. Nd3 {[%clk 0:00:18.4]} 43... Ba8 {[%clk 0:00:04.2]} 44. Nxc5 {[%clk
0:00:16.4]} 44... Qe5+ {[%clk 0:00:04.1]} 45. Kg1 {[%clk 0:00:14.5]} 45... Qe1+
{[%clk 0:00:04.4]} 46. Kh2 {[%clk 0:00:15.2]} 46... Qe5+ {[%clk 0:00:05.1]} 47.
f4 {[%clk 0:00:15.9]} 47... Qxf4+ {[%clk 0:00:05.2]} 48. Kg1 {[%clk 0:00:15.8]}
48... Qe3+ {[%clk 0:00:05.5]} 49. Kf1 {[%clk 0:00:16.2]} 49... Bd5 {[%clk
0:00:03.9]} 50. Nd3 {[%clk 0:00:15.5]} 50... Be4 {[%clk 0:00:03.6]} 51. Qc7+
{[%clk 0:00:15.6]} 51... Kg8 {[%clk 0:00:04]} 52. Qd8+ {[%clk 0:00:15.7]} 52...
Kg7 {[%clk 0:00:03.1]} 53. Qe7+ {[%clk 0:00:16.1]} 53... Kg8 {[%clk 0:00:03.6]}
54. Qd8+ {[%clk 0:00:16]} 54... Kg7 {[%clk 0:00:03.8]} 55. Qc7+ {[%clk 0:00:12]}
55... Kg8 {[%clk 0:00:04.3]} 56. Ne5 {[%clk 0:00:08.8]} 56... Qf4+ {[%clk
0:00:03.4]} 57. Ke2 {[%clk 0:00:07.7]} 57... Bd5 {[%clk 0:00:02.3]} 58. Qd8+
{[%clk 0:00:07.3]} 58... Kg7 {[%clk 0:00:01.9]} 59. Qxd5 {[%clk 0:00:07.8]}
59... Qg3 {[%clk 0:00:02.5]} 60. Qf7+ {[%clk 0:00:07.8]} 60... Kh8 {[%clk
0:00:03]} 61. Nxg6+ {[%clk 0:00:08.7]} 1-0

[Event "Early-Titled-Tuesday-Blitz-December-26-2023"]
[Site "Chess.com"]
[Date "2023.12.26"]
[Round "4"]
[White "CarlosjPineror"]
[Black "SahibSinghKnight"]
[Result "0-1"]
[WhiteElo "2491"]
[BlackElo "2685"]
[TimeControl "180+1"]
[EndTime "8:39:30 PST"]
[Termination "SahibSinghKnight won by resignation"]

1. e4 {[%clk 0:02:45.5]} 1... e6 {[%clk 0:02:59.5]} 2. d4 {[%clk 0:02:45.3]}
2... d5 {[%clk 0:03:00.4]} 3. e5 {[%clk 0:02:45.7]} 3... c5 {[%clk 0:02:58.8]}
4. c3 {[%clk 0:02:46.1]} 4... Qb6 {[%clk 0:02:58.6]} 5. Nf3 {[%clk 0:02:46.5]}
5... Bd7 {[%clk 0:02:57.5]} 6. a3 {[%clk 0:02:46.6]} 6... Bb5 {[%clk 0:02:50]}
7. c4 {[%clk 0:02:45.7]} 7... Bxc4 {[%clk 0:02:45.8]} 8. Bxc4 {[%clk 0:02:43.6]}
8... dxc4 {[%clk 0:02:45.5]} 9. d5 {[%clk 0:02:44.2]} 9... exd5 {[%clk
0:02:20.6]} 10. Qxd5 {[%clk 0:02:42.1]} 10... Qc6 {[%clk 0:02:20.9]} 11. Qxc4
{[%clk 0:02:29.9]} 11... Nd7 {[%clk 0:02:20.6]} 12. O-O {[%clk 0:02:29.6]} 12...
b5 {[%clk 0:02:19.8]} 13. Qe2 {[%clk 0:02:20.2]} 13... a6 {[%clk 0:02:09.1]} 14.
Nc3 {[%clk 0:02:19.9]} 14... Ne7 {[%clk 0:02:03.8]} 15. Ne4 {[%clk 0:02:19.7]}
15... Ng6 {[%clk 0:01:53]} 16. e6 {[%clk 0:02:19.4]} 16... Qxe6 {[%clk
0:01:45.3]} 17. Nfg5 {[%clk 0:02:04.6]} 17... Qe5 {[%clk 0:01:33.8]} 18. Qf3
{[%clk 0:02:03.8]} 18... O-O-O {[%clk 0:01:18.1]} 19. Nxf7 {[%clk 0:02:00.9]}
19... Qe6 {[%clk 0:01:13.6]} 20. Nxh8 {[%clk 0:02:00.8]} 20... Nde5 {[%clk
0:01:13.4]} 21. Qg3 {[%clk 0:01:48.3]} 21... Rd3 {[%clk 0:01:03.2]} 22. f3
{[%clk 0:01:31.8]} 22... Nxh8 {[%clk 0:01:02.3]} 23. Bf4 {[%clk 0:01:26.3]}
23... Nhf7 {[%clk 0:00:45.6]} 24. Rad1 {[%clk 0:01:20.5]} 24... c4 {[%clk
0:00:45.4]} 25. Ng5 {[%clk 0:01:10.9]} 25... Qb6+ {[%clk 0:00:43.3]} 26. Kh1
{[%clk 0:01:11]} 26... Nxg5 {[%clk 0:00:18.3]} 27. Qxg5 {[%clk 0:01:07.4]} 27...
Rxd1 {[%clk 0:00:07]} 28. Rxd1 {[%clk 0:01:06.2]} 28... Nd3 {[%clk 0:00:07.9]}
29. Qf5+ {[%clk 0:01:04.5]} 29... Kb7 {[%clk 0:00:08.5]} 30. Qf7+ {[%clk
0:00:59.9]} 30... Kc6 {[%clk 0:00:08.5]} 31. Qe8+ {[%clk 0:00:52.8]} 31... Kb7
{[%clk 0:00:06]} 32. Qd7+ {[%clk 0:00:49.9]} 32... Ka8 {[%clk 0:00:05.6]} 33.
Qe8+ {[%clk 0:00:34.7]} 33... Kb7 {[%clk 0:00:04.3]} 34. Be3 {[%clk 0:00:32.7]}
34... Qf6 {[%clk 0:00:03]} 35. Qd7+ {[%clk 0:00:29.2]} 35... Kb8 {[%clk
0:00:03.5]} 36. b4 {[%clk 0:00:18.2]} 36... Qd6 {[%clk 0:00:01.6]} 37. Qe8+
{[%clk 0:00:11.5]} 37... Kb7 {[%clk 0:00:01.7]} 38. Rf1 {[%clk 0:00:11.7]} 38...
c3 {[%clk 0:00:01.7]} 39. Qf7+ {[%clk 0:00:11.2]} 39... Kc8 {[%clk 0:00:02.2]}
40. g3 {[%clk 0:00:10.5]} 40... Ne5 {[%clk 0:00:02.8]} 41. Kg2 {[%clk
0:00:10.6]} 41... Nc4 {[%clk 0:00:03.7]} 42. Qf5+ {[%clk 0:00:09.5]} 42... Kd8
{[%clk 0:00:03.3]} 43. Bg5+ {[%clk 0:00:08.9]} 43... Ke8 {[%clk 0:00:03.3]} 44.
Re1+ {[%clk 0:00:08.9]} 44... Be7 {[%clk 0:00:03.5]} 45. Bxe7 {[%clk 0:00:08.9]}
45... Qd2+ {[%clk 0:00:02.8]} 46. Kh3 {[%clk 0:00:09.1]} 46... Qxe1 {[%clk
0:00:03]} 47. Qf8+ {[%clk 0:00:09.6]} 47... Kd7 {[%clk 0:00:03.7]} 48. Qd8+
{[%clk 0:00:10.5]} 48... Ke6 {[%clk 0:00:04.1]} 49. Bg5 {[%clk 0:00:10.3]} 49...
Qf1+ {[%clk 0:00:04.6]} 50. Kg4 {[%clk 0:00:10.1]} 50... Ne5+ {[%clk 0:00:04.3]}
51. Kh5 {[%clk 0:00:09.4]} 51... Qxf3+ {[%clk 0:00:03.9]} 0-1